Cogmind - Beta 13 @@@ ROGUE MODE // 2024.05.18 @ 01:28:08 Player: CanadianCogs Result: Destroyed by D-53 Grenadier with Mini Grenade Launcher Performance ------------- Evolutions (0) 0 Regions Visited (2) 400 Robots Destroyed (41) 205 Value Destroyed (791) 791 Prototype IDs (0) 0 Alien Tech Used (0) 0 Bonus (0) 0 TOTAL SCORE: 1396 Bonus ------- None Cogmind --------- Core Integrity 0/250 Matter 195/300 Energy 125/125 System Corruption 1% Temperature Cool (0) Movement Treading (320) Ox2 Location -10/Mines Parts ------- > --- POWER (1) -------- Light Ion Engine > --- PROPULSION (2) --- Light Treads > --- UTILITY (2) ------ High-capacity Storage Unit Core Shielding > --- WEAPON (2) ------- Grenade Launcher > --- INVENTORY (20) --- Light Treads Aluminum Leg Aluminum Leg Aluminum Leg Aluminum Leg Flight Unit VTOL Module VTOL Module VTOL Module VTOL Module Small Battery (100) Propulsion Shielding Battle Cannon Grenade Launcher Grenade Launcher Mace Mace Mace Mace Peak State ------------ > --- POWER ------------ Ion Engine > --- PROPULSION ------- Light Treads Light Treads > --- UTILITY ---------- High-capacity Storage Unit Light Armor Plating > --- WEAPON ----------- Mace Mace > --- INVENTORY -------- Light Treads Aluminum Leg Aluminum Leg Aluminum Leg Flight Unit VTOL Module VTOL Module VTOL Module VTOL Module Small Battery Core Shielding Propulsion Shielding Grenade Launcher Grenade Launcher Grenade Launcher Grenade Launcher Mace Mace [Rating: 11] Favorites ----------- Power Ion Engine Engine Ion Engine Propulsion Light Treads Treads Light Treads Utility High-capacity Storage Unit Device Structural Scanner Storage High-capacity Storage Unit Processor Transport Network Coupler Protection Light Armor Plating Weapon EM Pulse Gun Energy Gun EM Pulse Gun Energy Cannon Particle Cannon Launcher Grenade Launcher Impact Weapon Mace Slashing Weapon Mining Claw Build | -11 -10 -10 ------- Run | Yrd Mat Min Slots Evolved . | . . . Power . | . . . Propulsion . | . . . Utility . | . . . Weapon . | . . . Parts Attached 37 | 7 21 9 Power 4 | 1 2 1 Engine 4 | 1 2 1 Core . | . . . Reactor . | . . . Propulsion 6 | 2 3 1 Treads 6 | 2 3 1 Leg . | . . . Wheel . | . . . Hover . | . . . Flight . | . . . Utility 8 | 2 5 1 Device 3 | 1 2 . Storage 2 | 1 1 . Processor 1 | . 1 . Hackware . | . . . Protection 2 | . 1 1 Artifact . | . . . Weapon 19 | 2 11 6 Energy Gun 7 | 2 5 . Energy Cannon 3 | . 3 . Ballistic Gun . | . . . Ballistic Cannon . | . . . Launcher 3 | . . 3 Special Weapon . | . . . Impact Weapon 5 | . 2 3 Slashing Weapon 1 | . 1 . Piercing Weapon . | . . . Special Melee Weapon . | . . . Unidentified Prototypes . | . . . Parts Lost 5 | . 1 4 Power . | . . . Propulsion 1 | . . 1 Utility 2 | . 1 1 Weapon 2 | . . 2 Highest Loss Streak 3 | . 1 3 To Critical Strikes . | . . . Average Slot Usage (%) 99 | . 99 99 Engine 14 | . 14 14 Treads 27 | . 28 27 Device 7 | . 9 . Storage 14 | . 14 14 Protection 6 | . 4 13 Energy Gun 14 | . 20 . Energy Cannon 5 | . 6 . Impact Weapon 6 | . . 26 Naked Turns . | . . . Heaviest Build 52 | 15 52 52 Greatest Support 40 | 40 40 40 Greatest Overweight (x) 1 | . 1 1 Average Overweight (x) . | . . 1 Largest Inventory Capacity 20 | 8 20 20 Average Capacity 16 | 6 15 20 Most Carried 20 | 5 20 20 Average Carried 12 | 3 10 19 Final Capacity 20 | 8 20 20 Final Carried 20 | 2 20 19 Class Distribution -------------------- 70% | Mutant 29% | Scavenger-Mutant Dominant Class ---------------- Mutant | -10/Materials Mutant | -10/Mines Resources | -11 -10 -10 ----------- Run | Yrd Mat Min Matter Collected 553 | 229 233 91 Remotely . | . . . Salvage Created 1573 | 134 1134 305 Parts 72 | 12 52 8 Haulers Intercepted 2 | . 2 . Recyclers Shooed 5 | . 5 . Parts Field Recycled . | . . . Retrieved Matter . | . . . Parts Self-Destructed . | . . . Prevented . | . . . Kills | -11 -10 -10 ------- Run | Yrd Mat Min Combat Hostiles Destroyed 25 | . 17 8 Melee 4 | . . 4 Guns 10 | . 8 2 Cannons 7 | . 7 . AOE 2 | . 1 1 Classes Destroyed 9 | 2 6 1 Builder 1 | . 1 . Tunneler 3 | 3 . . Hauler 2 | . 2 . Recycler 7 | 1 5 1 Operator 1 | . 1 . Watcher 2 | . 2 . Swarmer 11 | . 8 3 Grunt 13 | . 9 4 Demolisher 1 | . . 1 Best Kill Streak 3 | 2 3 3 Combat Bots Only 3 | . 3 3 Max Kills in Single Turn 2 | 1 2 1 Gunslinging 1 | . 1 . Exploded 1 | . 1 1 Melee 1 | . . 1 Uniques/NPCs Destroyed . | . . . Combat | -11 -10 -10 -------- Run | Yrd Mat Min Hostile Shots Fired 130 | . 93 37 Missed 31 | . 21 10 Damage Taken 1355 | . 724 631 Core 255 | . 129 126 Absorbed by Shields . | . . . Redirected to Shielding 15 | . . 15 Core Remaining (%) 100 | 100 . . Volleys Fired 94 | 9 70 15 Largest 2 | 2 2 2 Hottest 136 | 80 136 80 Shots Fired 170 | 11 138 21 Gun 93 | 11 70 12 Cannon 68 | . 68 . Launcher 9 | . . 9 Special . | . . . Kinetic . | . . . Thermal 68 | . 68 . Explosive 9 | . . 9 Electromagnetic 93 | 11 70 12 Robot Hit Streak 8 | 7 8 8 Robot Miss Streak 5 | 2 5 2 Penetration Max . | . . . Secondary Targets 1 | . 1 . Max Gunslinging Chain 1 | . 1 . Shots Hit Robots 107 | 8 77 22 Core Hits 55 | 5 32 18 Critical Kills . | . . . Critical Parts Destroyed 3 | . . 3 Critical Strikes 3 | . . 3 Smash 3 | . . 3 Melee Attacks 13 | . 4 9 Impact 11 | . 2 9 Slashing 2 | . 2 . Piercing . | . . . Sneak Attacks 2 | . . 2 Combat Hostiles . | . . . Follow-up Attacks 1 | . . 1 Damage Inflicted 2249 | 103 1550 596 Guns 732 | 103 499 130 Cannons 922 | . 922 . Explosions 204 | . 103 101 Melee 391 | . 26 365 Ramming . | . . . Kinetic . | . . . Thermal 1025 | . 1025 . Explosive 101 | . . 101 Electromagnetic 732 | 103 499 130 Impact 391 | . 26 365 Slashing . | . . . Piercing . | . . . Highest Corruption 1 | . 1 1 Average Corruption 1 | . 1 1 Corruption Purged . | . . . Corruption Blocked . | . . . Effects 10 | . 5 5 Message Errors 3 | . 1 2 Matter Fused 3 | . 2 1 Heat Flow Errors 1 | . . 1 Energy Discharges 1 | . 1 . Data Loss (major) 1 | . 1 . Alerts 1 | . . 1 Overload Shots . | . . . Overflow Damage 205 | . 37 168 Projectiles 30 | . 30 . Explosions 1 | . 1 . Melee 174 | . 6 168 Knockbacks 2 | . . 2 Impact 2 | . . 2 Kinetic . | . . . Secondary . | . . . Self-Inflicted Damage 42 | . 42 . Shots 2 | . 2 . Rammed . | . . . Targets Rammed . | . . . Kicked . | . . . Crushed . | . . . Highest Temperature 324 | 36 324 153 Average Temperature 95 | 20 98 81 Received Heat Transfer 258 | . 198 60 Effects 5 | . 5 . Energy Bleed 1 | . 1 . Interference 4 | . 4 . Siege Activations . | . . . Robots Corrupted . | . . . Combat Hostiles . | . . . Parts Fried 5 | . 2 3 Impact Corruptions 8 | . 1 7 Robots Melted . | . . . Combat Hostiles . | . . . Parts Melted 4 | . 4 . Heat Transferred 1815 | . 1815 . Parts Sabotaged . | . . . Parts Stolen . | . . . Parts Stripped . | . . . Power Chain Reactions 3 | . 3 . Alert | -11 -10 -10 ------- Run | Yrd Mat Min Peak Influence 331 | 20 331 158 Initial 68 | . 13 68 Average 162 | 10 194 91 Maximum Alert Level 1 | . 1 . Low Security (%) 65 | 100 51 100 Level 1 34 | . 48 . Level 2 . | . . . Level 3 . | . . . Level 4 . | . . . Level 5 . | . . . High Security . | . . . Max Security . | . . . Squads Dispatched 7 | . 7 . Investigation 7 | . 7 . Extermination . | . . . Reinforcement . | . . . Assault . | . . . Garrison . | . . . Intercept . | . . . Searches Triggered . | . . . Construction Impeded . | . . . Haulers Reinforced . | . . . Active Scanning Responses . | . . . Cargo Convoy Interrupts . | . . . Stealth | -11 -10 -10 --------- Run | Yrd Mat Min Distress Signals 1 | . 1 . Communications Jammed . | . . . Distress Signals . | . . . Times Spotted 36 | . 27 9 Peak Tracking Total 4 | . 4 3 Tactical Retreats 1 | . 1 . Traps | -11 -10 -10 ------- Run | Yrd Mat Min Traps Triggered . | . . . Indirectly . | . . . Trap Hack Attempts . | . . . Triggered . | . . . Disarmed . | . . . Reprogrammed . | . . . Reused . | . . . Traps Extracted . | . . . Installed . | . . . Triggered . | . . . Machines | -11 -10 -10 ---------- Run | Yrd Mat Min Machines Disabled 4 | . 4 . Max in Single Turn 1 | . 1 . Machines Repaired . | . . . Machines Dismantled . | . . . Machines Sabotaged . | . . . Overloaded Fab Kills . | . . . Hacking | -11 -10 -10 --------- Run | Yrd Mat Min Machines Accessed 10 | . 10 . Terminals 7 | . 7 . Fabricators . | . . . Repair Stations 1 | . 1 . Recycling Units 2 | . 2 . Scanalyzers . | . . . Garrison Access . | . . . Total Hacks 43 | . 43 . Successful 23 | . 23 . Failed 20 | . 20 . Catastrophic 2 | . 2 . Database Lockouts . | . . . Manual 36 | . 36 . Terminals 31 | . 31 . Fabricators . | . . . Repair Stations 3 | . 3 . Recycling Units 9 | . 9 . Scanalyzers . | . . . Garrison Access . | . . . Terminal Hacks 7 | . 7 . Robot Schematic 5 | . 5 . Locate Traps 2 | . 2 . Fabricator Hacks . | . . . Repair Station Hacks 1 | . 1 . Scan Component 1 | . 1 . Recycling Unit Hacks 2 | . 2 . Report Inventory 2 | . 2 . Scanalyzer . | . . . Garrison Access Hacks . | . . . Unauthorized Hacks 13 | . 13 . Terminals 7 | . 7 . Botnet 7 | . 7 . Fabricators . | . . . Repair Stations 1 | . 1 . Mechanics 1 | . 1 . Recycling Units 5 | . 5 . Reject 2 | . 2 . Mask 2 | . 2 . Tunnel 1 | . 1 . Scanalyzers . | . . . Garrison Access . | . . . Data Cores Recovered . | . . . Used . | . . . Hacking Detections 10 | . 10 . Full Trace Events 8 | . 8 . Feedback Events 1 | . 1 . Corruption 1 | . 1 . Feedback Blocked . | . . . Robot Schematics Acquired 5 | . 5 . Robots Built . | . . . Authchips . | . . . Time . | . . . Total Robot Build Rating . | . . . Part Schematics Acquired . | . . . Parts Built . | . . . Authchips . | . . . Time . | . . . Total Part Build Rating . | . . . Parts Repaired . | . . . Time . | . . . Parts Recycled . | . . . Recycled Matter . | . . . Retrieved Matter . | . . . Retrieved Components . | . . . Parts Scanalyzed . | . . . Part Schematics Acquired . | . . . Parts Damaged . | . . . Bothacking | -11 -10 -10 ------------ Run | Yrd Mat Min Used RIF Installer . | . . . Robots Hacked . | . . . Non-combat . | . . . Combat . | . . . Robot Hacks Applied . | . . . Relay Couplers Released . | . . . Fabnet Peak Effective % . | . . . Robots Rewired . | . . . Allies Hacked . | . . . Hacks Repelled . | . . . Allies | -11 -10 -10 -------- Run | Yrd Mat Min Total Allies . | . . . Largest Group . | . . . Highest-Rated Group . | . . . Highest-Rated Ally . | . . . Total Orders . | . . . Ally Attacks . | . . . Total Damage . | . . . Kills . | . . . Allies Corrupted . | . . . Allies Melted . | . . . Intel | -11 -10 -10 ------- Run | Yrd Mat Min Robot Analysis Total . | . . . Derelict Logs Recovered . | . . . Drone Launches . | . . . Drone Recoveries . | . . . Exploration | -11 -10 -10 ------------- Run | Yrd Mat Min Turns Passed 2761 | 91 1971 699 Spaces Moved 1064 | 48 755 261 Core 34 | 34 . . Treads 1030 | 14 755 261 Legs . | . . . Wheels . | . . . Hover . | . . . Flight . | . . . Fastest Speed 50 | 50 160 240 Average Speed 206 | 82 202 240 Slowest Speed 240 | 160 240 240 Overloaded Moves . | . . . Propulsion Burnouts . | . . . Robots Hopped . | . . . Cave-ins Triggered . | . . . Exploration Rate (%) 50 | 5 97 49 Regions Visited 2 Branch Regions 1 Pre-discovered Areas 1 | . 1 . Known Exits Taken . | . . . Unknown Exits Taken 2 | 1 1 . Scrap Searched . | . . . Spaces Dug 2 | . 2 . Terrain Destroyed 51 | . 8 43 Melee 2 | . 2 . Projectile . | . . . AOE 49 | . 6 43 Terrain Rammed . | . . . Walls Destroyed . | . . . Machines Disabled . | . . . Actions | -11 -10 -10 --------- Run | Yrd Mat Min Total 1441 | 88 1054 299 Wait 183 | 17 164 2 Move 1062 | 47 754 261 Hop . | . . . Pick Up 36 | 8 25 3 Fast Attach 4 | 1 3 . Attach 12 | 6 3 3 Detach 2 | . 2 . Swap 21 | . 15 6 Drop 16 | . 14 2 Fire 94 | 9 70 15 Melee 11 | . 4 7 Ram . | . . . Kick . | . . . Crush . | . . . Escape Stasis . | . . . Rewire . | . . . Trap . | . . . Miscellaneous . | . . . Route ------- -11/Scrapyard -10/Materials (discovered 5 exits: [*Mat x3] / [*Min] / [Sub]) -10/Mines (discovered 1 exit: [*Mat]) History --------- Turn | Location | Event 12 | -11/Scrapyard | Discovered new exit (range 15) 92 | -11/Scrapyard | Entered Materials 313 | -10/Materials | Build established: Mutant 524 | -10/Materials | Discovered new exit (range 11) 844 | -10/Materials | Discovered new exit (range 8) 998 | -10/Materials | Build established: Scavenger-Mutant 1042 | -10/Materials | Core integrity fell below 50% 1150 | -10/Materials | Discovered new exit (range 8) 1426 | -10/Materials | Discovered new exit (range 12) 1733 | -10/Materials | Discovered new exit (range 12) 1799 | -10/Materials | Build established: Mutant 2063 | -10/Materials | Entered Mines 2230 | -10/Mines | Discovered new exit (range 9) 2715 | -10/Mines | Assembled infested the area 2720 | -10/Mines | Assisted by a Guerilla fighting off Assembled 2721 | -10/Mines | A weapon hastily lodged in a ceiling crevice suddenly fell to the ground 2755 | -10/Mines | Core integrity fell below 20% 2762 | -10/Mines | Destroyed by D-53 Grenadier with Mini Grenade Launcher Last Messages --------------- 02720_ A derelict emerges from the shadows: "You need to get out of here! I've been tracking a group of Assembled to figure out where they're coming from, and they're closing on this area, come on!" 02721_ A Battle Cannon has been hastily shoved under some rubble with a note attached: "To battle!" 02726_ Acquired Battle Cannon. 02737_ C-30 ARC bursts open, deploying its payload. 02737_ D-53 Grenadier unfolds itself. 02738_ as-92757 destroyed. 02738_ as-58249 destroyed. 02738_ T-07 Excavator destroyed. 02746_ Lgt. Armor Plating destroyed. 02753_ The unstable cave ceiling collapses. 02756_ D-53 Grenadier destroyed. 02756_ Lgt. Treads destroyed. 02759_ The unstable cave ceiling collapses. 02760_ System corrupted: IFF burst signal emitted. 02760_ Grenade Launcher destroyed. [Achievement: Back For More] [Achievement: Achiever] Map ----- +----------------------------------------------------+ | ?????????????????????????????????????????????????? | | ?????????????????????????????????????????????????? | | ?????????????????????????????????????????????????? | | ?????????????????????????????????????????????????? | | ???????????????????????????????????###???????????? | | ??????????????????????????????????? ##?????????? | | ???????????????????????????????????? ###???????? | | ???????????????????????????????????? ##??????? | | ???????????????????????????????????? ???????? | | ???????????????????????????????????? ???????? | | ????????????????????????????????????# ????????? | | ????????????????????????????????????# ????????? | | ????????????????????????????????????# ????????? | | ????????????????????????????????????# ?????????? | | ???????????????????????????????????## #?????????? | | ??????????????????????????????????## #?????????? | | ??????????????????????????????????# ##????????? | | ?????????????????????????????????## ####?????? | | ?????????????????????????????????# ##????? | | ?????????????????????############# ##???? | | ?????????????????????# kr #???? | | ??????????????????#### ##### #???? | | ??????????????????? ##?# *= ##??? | | ????????????????????# ### [%= ##?? | | ????????????????????# ## ### #?? | | ????????????????????# @ ##?## #?# | | ???????????????# ##???## ##?# | | ???????????? ##?????## #??# | | ???????????#u # ###???????# #### | | ??????????? d ## ##?????????# | | ????? %a= ##??????????# ### | | ???????? = ##???????????### #?? | | ???????? ## ##??????????????# #?? | | ??????????#?? # ?######???????????????# ### | | ??????????????## ###??????????????????????# # | | ???????????????#####?????????????????????????## # | | ??????????????????????????????????????????????# # | | ?????????????????????????????????????????????## | | ?????????????????????????????????????????????# | | ?????????????????????????????????????????????# | | ?????????????????????????????????????????????# | | ????????????????????????????????????????????## | | ??????????????????????????????????????????### | | ?????????????????????????????????????????## | | ?????????????????????????????????? | | ?????????????????????????????????# ## | | ????????????????????????????????? ### #?## | | ???????????????????????????????????????######???## | | ?????????????????????????????????????????????????? | | ?????????????????????????????????????????????????? | +----------------------------------------------------+ Best States ------------- Heat Dissipation 25 Energy Generation 10 Energy Capacity 250 Matter Stores 300 Matter Capacity 300 Sight Range 16 Terrain Scan Density 10 Armor Coverage 150 Core Shielding 20 Evasion (%) 50 Recoil Reduction 2 Item Schematics ----------------- None Robot Schematics ------------------ S-10 Pest | -10/Materials | Hacked W-16 Scout | -10/Materials | Hacked O-16 Technician | -10/Materials | Hacked K-01 Serf | -10/Materials | Hacked T-07 Excavator | -10/Materials | Hacked Fabricated ------------ Nothing Alien Tech Used ----------------- None Achievements -------------- Achiever Back For More Hey, That's Mine! Challenges ------------ None Game ------ Seed ModifiedHybridAccelerator Manual? 0 Play Time 00:33:44 Cumulative 29.9 hours Start 2024.05.18 @ 00:45:32 End 2024.05.18 @ 01:28:08 Sessions 1 Manual Loads 0 Difficulty Rogue Special Mode None Game No. 50 Rogue 50 Adventurer 0 Explorer 0 Win Type - Total 0 Types 0/0/0/0/0/0/0/0/0 Lore% 20 Gallery% 27 Achievement% 25 Wizard Run 0 Options --------- Layout 0 ASCII 0 Keyboard 0 Movement Mouse Keybinds 0 Fullscreen 2 Font 18/SmallcapsGlow Map View 38x25 Zoom Use 92% Tactical HUD 1 Map Filters NONE Filters NONE Steam 1 RUN: 18023c7d-01ae-42a7-8907-3cb699720add